Cogmind - Beta 13 @@@ ROGUE MODE // 2024.08.04 @ 22:18:36 Player: APerTAS Result: Self-destructed Performance ------------- Evolutions (2) 1000 Regions Visited (5) 1000 Robots Destroyed (4) 20 Value Destroyed (168) 168 Prototype IDs (23) 460 Alien Tech Used (0) 0 Bonus (360) 360 TOTAL SCORE: 3008 Bonus ------- Follower Combat Kills 60 Aligned with FarCom 300 Cogmind --------- Core Integrity 550/550 Matter 300/300 Energy 250/250 System Corruption 0% Temperature Cool (0) Movement Walking (120) Location -8/Materials Parts ------- > --- POWER (1) -------- Ion Engine > --- PROPULSION (3) --- Aluminum Leg > --- UTILITY (5) ------ Improved Heat Sink Signal Interpreter > --- WEAPON (2) ------- Longsword +1 > --- INVENTORY (5) ---- Light Treads Heat Sink Light Armor Plating Peak State ------------ > --- POWER ------------ Ion Engine > --- PROPULSION ------- Aluminum Leg > --- UTILITY ---------- Improved Heat Sink Signal Interpreter > --- WEAPON ----------- Longsword +1 > --- INVENTORY -------- (None) [Rating: 14] Favorites ----------- Power Ion Engine Engine Ion Engine Propulsion Aluminum Leg Leg Aluminum Leg Utility Signal Interpreter Device Improved Heat Sink Processor Signal Interpreter Weapon Longsword +1 Slashing Weapon Longsword +1 Build | -11 -10 -10 -10 -9 -8 ------- Run | Yrd Mat Min Exi Min Mat Slots Evolved 4 | . . . . . 4 Power . | . . . . . . Propulsion 1 | . . . . . 1 Utility 3 | . . . . . 3 Weapon . | . . . . . . Parts Attached 5 | . 1 . 1 3 . Power 1 | . . . . 1 . Engine 1 | . . . . 1 . Core . | . . . . . . Reactor . | . . . . . . Propulsion 1 | . . . . 1 . Treads . | . . . . . . Leg 1 | . . . . 1 . Wheel . | . . . . . . Hover . | . . . . . . Flight . | . . . . . . Utility 2 | . 1 . . 1 . Device 1 | . . . . 1 . Storage . | . . . . . . Processor 1 | . 1 . . . . Hackware . | . . . . . . Protection . | . . . . . . Artifact . | . . . . . . Weapon 1 | . . . 1 . . Energy Gun . | . . . . . . Energy Cannon . | . . . . . . Ballistic Gun . | . . . . . . Ballistic Cannon . | . . . . . . Launcher . | . . . . . . Special Weapon . | . . . . . . Impact Weapon . | . . . . . . Slashing Weapon 1 | . . . 1 . . Piercing Weapon . | . . . . . . Special Melee Weapon . | . . . . . . Unidentified Prototypes . | . . . . . . Parts Lost . | . . . . . . Power . | . . . . . . Propulsion . | . . . . . . Utility . | . . . . . . Weapon . | . . . . . . Highest Loss Streak . | . . . . . . To Critical Strikes . | . . . . . . Average Slot Usage (%) 46 | . 11 14 20 63 45 Engine 7 | . . . . 11 9 Leg 7 | . . . . 11 9 Device 7 | . . . . 11 9 Processor 13 | . 11 14 14 14 9 Slashing Weapon 10 | . . . 6 14 9 Naked Turns 9 | . 9 . . . . Heaviest Build 9 | . . . 3 9 9 Greatest Support 10 | 3 3 3 3 10 10 Greatest Overweight (x) . | . . . . . . Average Overweight (x) . | . . . . . . Largest Inventory Capacity 5 | 5 5 5 5 5 5 Average Capacity 5 | 5 5 5 5 5 5 Most Carried 3 | . . . . 3 3 Average Carried 1 | . . . . 2 3 Final Capacity 5 | 5 5 5 5 5 5 Final Carried 3 | . . . . 3 3 Class Distribution -------------------- 100% | Mutant Dominant Class ---------------- Mutant | -10/Materials Mutant | -10/Mines Mutant | -10/Exiles Mutant | -9/Mines Mutant | -8/Materials Resources | -11 -10 -10 -10 -9 -8 ----------- Run | Yrd Mat Min Exi Min Mat Matter Collected 148 | 98 . . . 50 . Remotely . | . . . . . . Salvage Created 163 | . . . . 163 . Parts 5 | . . . . 5 . Haulers Intercepted . | . . . . . . Recyclers Shooed . | . . . . . . Parts Field Recycled . | . . . . . . Retrieved Matter . | . . . . . . Parts Self-Destructed . | . . . . . . Prevented . | . . . . . . Kills | -11 -10 -10 -10 -9 -8 ------- Run | Yrd Mat Min Exi Min Mat Combat Hostiles Destroyed 6 | . . . . 6 . Melee 6 | . . . . 6 . Classes Destroyed 3 | . . . . 3 . Grunt 3 | . . . . 3 . Demolisher 1 | . . . . 1 . Assembled 2 | . . . . 2 . Best Kill Streak 3 | . . . . 3 . Combat Bots Only 3 | . . . . 3 . Max Kills in Single Turn 1 | . . . . 1 . Gunslinging . | . . . . . . Exploded . | . . . . . . Melee 1 | . . . . 1 . Uniques/NPCs Destroyed . | . . . . . . Combat | -11 -10 -10 -10 -9 -8 -------- Run | Yrd Mat Min Exi Min Mat Hostile Shots Fired 15 | . 3 . . 12 . Missed 8 | . 2 . . 6 . Damage Taken 235 | 48 13 . . 174 . Core 169 | 48 13 . . 108 . Absorbed by Shields . | . . . . . . Core Remaining (%) 56 | 80 . . . 32 . Volleys Fired . | . . . . . . Largest . | . . . . . . Hottest . | . . . . . . Shots Fired . | . . . . . . Gun . | . . . . . . Cannon . | . . . . . . Launcher . | . . . . . . Special . | . . . . . . Kinetic . | . . . . . . Thermal . | . . . . . . Explosive . | . . . . . . Electromagnetic . | . . . . . . Robot Hit Streak . | . . . . . . Robot Miss Streak . | . . . . . . Penetration Max . | . . . . . . Secondary Targets . | . . . . . . Shots Hit Robots 9 | . . . . 9 . Core Hits 9 | 3 . . . 6 . Critical Kills . | . . . . . . Critical Parts Destroyed . | . . . . . . Critical Strikes . | . . . . . . Melee Attacks 11 | . . . . 11 . Impact . | . . . . . . Slashing 11 | . . . . 11 . Piercing . | . . . . . . Sneak Attacks . | . . . . . . Combat Hostiles . | . . . . . . Follow-up Attacks . | . . . . . . Damage Inflicted 523 | 92 . . . 431 . Guns . | . . . . . . Cannons . | . . . . . . Explosions . | . . . . . . Melee 431 | . . . . 431 . Ramming 92 | 92 . . . . . Kinetic . | . . . . . . Thermal . | . . . . . . Explosive . | . . . . . . Electromagnetic . | . . . . . . Impact . | . . . . . . Slashing 431 | . . . . 431 . Piercing . | . . . . . . Highest Corruption 2 | 2 2 2 2 2 . Average Corruption 2 | 2 2 2 2 2 . Corruption Purged . | . . . . . . Corruption Blocked . | . . . . . . Effects 3 | 1 . . . 2 . Message Errors 1 | . . . . 1 . Energy Discharges 1 | 1 . . . . . Alerts 1 | . . . . 1 . Overload Shots . | . . . . . . Overflow Damage 18 | . . . . 18 . Projectiles . | . . . . . . Explosions . | . . . . . . Melee 18 | . . . . 18 . Knockbacks . | . . . . . . Impact . | . . . . . . Kinetic . | . . . . . . Secondary . | . . . . . . Self-Inflicted Damage 38 | 38 . . . . . Shots . | . . . . . . Rammed 31 | 31 . . . . . Targets Rammed 31 | 31 . . . . . Kicked . | . . . . . . Crushed . | . . . . . . Highest Temperature 2 | . 2 . . . . Average Temperature 2 | . 2 . . . . Received Heat Transfer 42 | . 27 . . 15 . Siege Activations . | . . . . . . Robots Corrupted . | . . . . . . Combat Hostiles . | . . . . . . Parts Fried . | . . . . . . Impact Corruptions . | . . . . . . Robots Melted . | . . . . . . Combat Hostiles . | . . . . . . Parts Melted . | . . . . . . Heat Transferred . | . . . . . . Parts Sabotaged . | . . . . . . Parts Stolen . | . . . . . . Parts Stripped . | . . . . . . Power Chain Reactions . | . . . . . . Alert | -11 -10 -10 -10 -9 -8 ------- Run | Yrd Mat Min Exi Min Mat Peak Influence 208 | . . . . 208 80 Initial 80 | . . . . . 80 Average 76 | . . . . 105 80 Maximum Alert Level 1 | . . . . 1 . Low Security (%) 91 | 100 100 100 . 87 100 Level 1 8 | . . . . 12 . Level 2 . | . . . . . . Level 3 . | . . . . . . Level 4 . | . . . . . . Level 5 . | . . . . . . High Security . | . . . . . . Max Security . | . . . . . . Squads Dispatched . | . . . . . . Investigation . | . . . . . . Extermination . | . . . . . . Reinforcement . | . . . . . . Assault . | . . . . . . Garrison . | . . . . . . Intercept . | . . . . . . Searches Triggered . | . . . . . . Construction Impeded . | . . . . . . Haulers Reinforced . | . . . . . . Active Scanning Responses . | . . . . . . Cargo Convoy Interrupts . | . . . . . . Stealth | -11 -10 -10 -10 -9 -8 --------- Run | Yrd Mat Min Exi Min Mat Distress Signals 1 | . . . . 1 . Communications Jammed . | . . . . . . Distress Signals . | . . . . . . Times Spotted 14 | . 4 . . 10 . Peak Tracking Total 5 | . 5 . . 3 . Tactical Retreats 3 | . . . . 3 . Traps | -11 -10 -10 -10 -9 -8 ------- Run | Yrd Mat Min Exi Min Mat Traps Triggered . | . . . . . . Indirectly . | . . . . . . Trap Hack Attempts . | . . . . . . Triggered . | . . . . . . Disarmed . | . . . . . . Reprogrammed . | . . . . . . Reused . | . . . . . . Traps Extracted . | . . . . . . Installed . | . . . . . . Triggered . | . . . . . . Machines | -11 -10 -10 -10 -9 -8 ---------- Run | Yrd Mat Min Exi Min Mat Machines Disabled . | . . . . . . Max in Single Turn . | . . . . . . Machines Repaired . | . . . . . . Machines Dismantled . | . . . . . . Machines Sabotaged . | . . . . . . Overloaded Fab Kills . | . . . . . . Hacking | -11 -10 -10 -10 -9 -8 --------- Run | Yrd Mat Min Exi Min Mat Machines Accessed 3 | . . . 2 . 1 Terminals 1 | . . . . . 1 Fabricators . | . . . . . . Repair Stations . | . . . . . . Recycling Units . | . . . . . . Scanalyzers . | . . . . . . Garrison Access . | . . . . . . Total Hacks 4 | . . . 2 . 2 Successful 3 | . . . 2 . 1 Failed 1 | . . . . . 1 Catastrophic . | . . . . . . Database Lockouts . | . . . . . . Manual 3 | . . . 1 . 2 Terminals 2 | . . . . . 2 Fabricators . | . . . . . . Repair Stations . | . . . . . . Recycling Units . | . . . . . . Scanalyzers . | . . . . . . Garrison Access . | . . . . . . Terminal Hacks 2 | . . . 2 . . Record 1 | . . . 1 . . Derelict Proto ID Bank 1 | . . . 1 . . Fabricator Hacks . | . . . . . . Repair Station Hacks . | . . . . . . Recycling Unit Hacks . | . . . . . . Scanalyzer . | . . . . . . Garrison Access Hacks . | . . . . . . Unauthorized Hacks 1 | . . . . . 1 Terminals 1 | . . . . . 1 Botnet 1 | . . . . . 1 Fabricators . | . . . . . . Repair Stations . | . . . . . . Recycling Units . | . . . . . . Scanalyzers . | . . . . . . Garrison Access . | . . . . . . Data Cores Recovered . | . . . . . . Used . | . . . . . . Hacking Detections . | . . . . . . Full Trace Events . | . . . . . . Feedback Events . | . . . . . . Feedback Blocked . | . . . . . . Robot Schematics Acquired . | . . . . . . Robots Built . | . . . . . . Authchips . | . . . . . . Time . | . . . . . . Total Robot Build Rating . | . . . . . . Part Schematics Acquired . | . . . . . . Parts Built . | . . . . . . Authchips . | . . . . . . Time . | . . . . . . Total Part Build Rating . | . . . . . . Parts Repaired . | . . . . . . Time . | . . . . . . Parts Recycled . | . . . . . . Recycled Matter . | . . . . . . Retrieved Matter . | . . . . . . Retrieved Components . | . . . . . . Parts Scanalyzed . | . . . . . . Part Schematics Acquired . | . . . . . . Parts Damaged . | . . . . . . Bothacking | -11 -10 -10 -10 -9 -8 ------------ Run | Yrd Mat Min Exi Min Mat Used RIF Installer . | . . . . . . Robots Hacked . | . . . . . . Non-combat . | . . . . . . Combat . | . . . . . . Robot Hacks Applied . | . . . . . . Relay Couplers Released . | . . . . . . Fabnet Peak Effective % . | . . . . . . Robots Rewired . | . . . . . . Allies Hacked . | . . . . . . Hacks Repelled . | . . . . . . Allies | -11 -10 -10 -10 -9 -8 -------- Run | Yrd Mat Min Exi Min Mat Total Allies 3 | . . . . 3 . Largest Group 3 | . . . . 3 3 Highest-Rated Group 40 | . . . . 40 40 Highest-Rated Ally 16 | . . . . 16 16 Total Orders . | . . . . . . Ally Attacks 13 | . . . . 10 3 Total Damage 135 | . . . . 101 34 Kills 2 | . . . . 2 . Allies Corrupted . | . . . . . . Allies Melted . | . . . . . . Intel | -11 -10 -10 -10 -9 -8 ------- Run | Yrd Mat Min Exi Min Mat Robot Analysis Total . | . . . . . . Derelict Logs Recovered 2 | . . 1 . 1 . Drone Launches . | . . . . . . Drone Recoveries . | . . . . . . Exploration | -11 -10 -10 -10 -9 -8 ------------- Run | Yrd Mat Min Exi Min Mat Turns Passed 557 | 52 51 17 109 314 14 Spaces Moved 677 | 42 98 33 215 278 11 Core 483 | 42 98 33 215 95 . Treads . | . . . . . . Legs 194 | . . . . 183 11 Wheels . | . . . . . . Hover . | . . . . . . Flight . | . . . . . . Fastest Speed 50 | 50 50 50 50 50 120 Average Speed 70 | 50 50 50 50 96 120 Slowest Speed 120 | 50 50 50 50 120 120 Overloaded Moves . | . . . . . . Propulsion Burnouts . | . . . . . . Robots Hopped . | . . . . . . Cave-ins Triggered . | . . . . . . Exploration Rate (%) 24 | 4 26 12 60 42 3 Regions Visited 5 Branch Regions 3 Pre-discovered Areas 1 | . . . 1 . . Known Exits Taken 4 | . 1 1 1 1 . Unknown Exits Taken 1 | 1 . . . . . Scrap Searched . | . . . . . . Spaces Dug . | . . . . . . Terrain Destroyed . | . . . . . . Melee . | . . . . . . Projectile . | . . . . . . AOE . | . . . . . . Terrain Rammed . | . . . . . . Walls Destroyed . | . . . . . . Machines Disabled . | . . . . . . Actions | -11 -10 -10 -10 -9 -8 --------- Run | Yrd Mat Min Exi Min Mat Total 740 | 72 98 32 215 312 11 Wait 18 | . . . . 18 . Move 672 | 41 97 32 214 277 11 Hop . | . . . . . . Pick Up 3 | . . . . 3 . Fast Attach 5 | . 1 . 1 3 . Attach . | . . . . . . Detach . | . . . . . . Swap . | . . . . . . Drop . | . . . . . . Fire . | . . . . . . Melee 11 | . . . . 11 . Ram 31 | 31 . . . . . Kick . | . . . . . . Crush . | . . . . . . Escape Stasis . | . . . . . . Rewire . | . . . . . . Trap . | . . . . . . Miscellaneous . | . . . . . . Route ------- -11/Scrapyard -10/Materials -10/Mines -10/Exiles -9/Mines -8/Materials (discovered 2 exits: *Sto x2) History --------- Turn | Location | Event 4 | -11/Scrapyard | Discovered new exit (range 13) 53 | -11/Scrapyard | Entered Materials 97 | -10/Materials | Discovered new exit (range 13) 103 | -10/Materials | Identified exit to Mines 104 | -10/Materials | Entered Mines 118 | -10/Mines | Deemed a non-threat by the Exiles lab entrance 119 | -10/Mines | Discovered new exit (range 5) 120 | -10/Mines | Identified exit to Exiles 121 | -10/Mines | Entered Exiles 135 | -10/Exiles | Met 8R-AWN 143 | -10/Exiles | Met EX-HEX 158 | -10/Exiles | Met EX-BIN 164 | -10/Exiles | Aligned with FarCom system 165 | -10/Exiles | Given EX-Vault access code 178 | -10/Exiles | Opened EX-Vault 182 | -10/Exiles | Found Longsword +1 194 | -10/Exiles | Warned to stay clear of 0b10 Research branches 208 | -10/Exiles | Met EX-DEC 211 | -10/Exiles | Learned location of Zion (-7) 226 | -10/Exiles | Discovered new exit (range 10) 230 | -10/Exiles | Identified exit to Mines 230 | -10/Exiles | Left Exiles lab with Longsword +1 230 | -10/Exiles | Entered Mines 245 | -9/Mines | Assembled infested the area 250 | -9/Mines | Assisted by a Guerilla fighting off Assembled 255 | -9/Mines | Received a Rocket Launcher from a helpful Derelict 309 | -9/Mines | Core integrity fell below 50% 316 | -9/Mines | Build established: Mutant 329 | -9/Mines | Joined a pair of Derelicts in attacking an 0b10 outpost 434 | -9/Mines | Learned Materials terminal intel 434 | -9/Mines | Discovered new exit (range 6) 443 | -9/Mines | Identified exit to Materials 444 | -9/Mines | Assisted by bots powering up and referring to "LRC-V3" 474 | -9/Mines | Found a hidden stash of uninstalled traps 544 | -9/Mines | Entered Materials 544 | -8/Materials | Accompanied by 3 allies 544 | -8/Materials | Evolved 4 slots: Propulsion x1, Utility x3 544 | -8/Materials | Discovered new exit (range 15) 545 | -8/Materials | Identified exit to Storage 546 | -8/Materials | Loaded intel: 12 terminal locations 558 | -8/Materials | Self-destructed Last Messages --------------- here! 00496_ System corrupted: IFF burst signal emitted. 00528_ K-01 Serf collects debris. 00541_ The unstable cave ceiling collapses. 00543_ U-05 Engineer builds a Wall. 00543_ K-01 Serf collects debris. PARAMETERS=PROPULSION+1,UTILITY+3 LOCATION=MATERIALS GOAL=ESCAPE 00544_ Receiving FarCom transmissions... 00544_ EXIT=FOUND Loading 1 Storage entrance... Loading Materials terminal intel (x12)... 00558_ Connecting with Terminal... >>Trojan(Botnet) Trojan loaded successfully. Testing... Terminal linked with 0 systems. Awaiting botnet instructions. Map ----- +----------------------------------------------------+ | | | | | | | | | | | | | | | | | | | | | | | | | | | | | | | | | ?????????????????????????????????????????????????? | | ?????????????????????????????????????????????????? | | ?????????????????????????????????????????????????? | | ??????????????????????????????######?????????????? | | ???????????????############### #?????????????? | | ????????????"??# #?????????????? | | ????????????T??# > #?????????????? | | ????????????"??# #?????????????? | | ???????????????###########+### #?????????????? | | ??????????????????????# T@ #???????????????????? | | ??????????????????????# #???????????????????? | | ????????????????????w + """ !#???????????????????? | | ????????????????????### """ #???????????????????? | | ??????????????w???????# """ #???????????????????? | | ??????????????????????# #???????????????????? | | ??????????????????????########???????????????????? | | ?????????????????????????????????????????????????? | | ?????????????????????????????????????????????????? | | ?????????????????????????????????????????????????? | | ?????????????????????????????????????????????????? | | ?????????????????????????????????????????????????? | | ?????????????????????????????????????????????????? | | ?????????????????????????????????????????????????? | | ?????????????????????????????????????????????????? | | ?????????????????????????????????????????????????? | | ?????????????????????????????????????????????????? | | ?????????????????????????????????????????????????? | | ?????????????????????????????????????????????????? | | ??????????""??????????????????????"??????????????? | | ??????????T"??????????????????????T??????????????? | | ??????????""??????????????????????"??????????????? | | ?????????????????????????????????????????????????? | | ?????????????????????????????????????????????????? | | ?????????????????????????????????????????????????? | +----------------------------------------------------+ Best States ------------- Heat Dissipation 45 Energy Generation 10 Energy Capacity 250 Matter Stores 300 Matter Capacity 300 Sight Range 16 Terrain Scan Density 10 Evasion (%) 55 Item Schematics ----------------- None Robot Schematics ------------------ None Fabricated ------------ Nothing Alien Tech Used ----------------- None Achievements -------------- None Challenges ------------ None Game ------ Seed LongswordAluminumTendrils Manual? 0 Play Time 00:08:45 Cumulative 21.7 hours Start 2024.07.24 @ 16:32:37 End 2024.08.04 @ 22:18:36 Sessions 3 Manual Loads 0 Difficulty Rogue Special Mode None Game No. 75 Rogue 75 Adventurer 0 Explorer 0 Win Type - Total 0 Types 0/0/0/0/0/0/0/0/0 Lore% 27 Gallery% 26 Achievement% 28 Wizard Run 0 Options --------- Layout 1 ASCII 0 Keyboard 0 Movement Arrows Keybinds 0 Fullscreen 1 Font 28/Dina Map View 50x43 Zoom Use 0% Tactical HUD 1 Map Filters NONE Filters NONE Steam 1 RUN: 30eb70f6-c7f6-4d66-8a2c-0ff334cf02bf